[Event "*** SCC Grand Prix: Titled Tuesday Blitz"]
[Site "Chess.com"]
[Date "2020.06.23"]
[Round "7"]
[White "Gerasimenyuk_Miha"]
[Black "WonderChampion"]
[Result "1-0"]
[WhiteElo "2324"]
[BlackElo "2032"]
[TimeControl "180+1"]
[EndTime "11:16:15 PDT"]
[Termination "Gerasimenyuk_Miha won by resignation"]

1. d4 {[%clk 0:03:00.9]} 1... d5 {[%clk 0:02:58.2]} 2. Nf3 {[%clk 0:03:01.8]}
2... e6 {[%clk 0:02:54.7]} 3. Bg5 {[%clk 0:03:01.9]} 3... Be7 {[%clk 0:02:52.7]}
4. h4 {[%clk 0:03:01.5]} 4... h6 {[%clk 0:02:50.7]} 5. Bxe7 {[%clk 0:03:00]}
5... Nxe7 {[%clk 0:02:50.5]} 6. e3 {[%clk 0:03:00.9]} 6... Bd7 {[%clk
0:02:48.9]} 7. Nbd2 {[%clk 0:03:01.8]} 7... Nf5 {[%clk 0:02:27.3]} 8. c3 {[%clk
0:03:02.7]} 8... Nd6 {[%clk 0:02:25.9]} 9. Bd3 {[%clk 0:03:02.8]} 9... Qe7
{[%clk 0:02:23.5]} 10. Qc2 {[%clk 0:02:49.1]} 10... Bb5 {[%clk 0:02:15.9]} 11.
O-O-O {[%clk 0:02:43.5]} 11... Bxd3 {[%clk 0:02:14.3]} 12. Qxd3 {[%clk 0:02:43]}
12... Na6 {[%clk 0:02:13.6]} 13. e4 {[%clk 0:02:42.4]} 13... dxe4 {[%clk
0:02:12.7]} 14. Nxe4 {[%clk 0:02:41.1]} 14... O-O-O {[%clk 0:02:11.5]} 15. Ne5
{[%clk 0:02:38.5]} 15... Nxe4 {[%clk 0:02:02.4]} 16. Qxe4 {[%clk 0:02:39.4]}
16... Qf6 {[%clk 0:01:58.9]} 17. f3 {[%clk 0:02:31.3]} 17... Rhe8 {[%clk
0:01:52.6]} 18. Qe2 {[%clk 0:02:30.5]} 18... Qe7 {[%clk 0:01:34.1]} 19. Nc6
{[%clk 0:02:28.7]} 19... bxc6 {[%clk 0:01:22.5]} 20. Qxa6+ {[%clk 0:02:26.9]}
20... Kd7 {[%clk 0:01:23.1]} 21. Rhe1 {[%clk 0:02:24.4]} 21... Ra8 {[%clk
0:01:18.1]} 22. h5 {[%clk 0:02:19.9]} 22... Qg5+ {[%clk 0:01:17.1]} 23. Kc2
{[%clk 0:02:19.1]} 23... Qxg2+ {[%clk 0:01:12.2]} 24. Rd2 {[%clk 0:02:18.1]}
24... Qxf3 {[%clk 0:01:10.7]} 25. Rf1 {[%clk 0:02:14.1]} 25... Qe4+ {[%clk
0:01:09.1]} 26. Kc1 {[%clk 0:02:12.9]} 26... f5 {[%clk 0:01:03.6]} 27. c4 {[%clk
0:02:12.3]} 27... Qe3 {[%clk 0:00:52.6]} 28. Rd1 {[%clk 0:02:05.5]} 28... f4
{[%clk 0:00:52.4]} 29. Kb1 {[%clk 0:02:04.2]} 29... f3 {[%clk 0:00:50.6]} 30. d5
{[%clk 0:02:04]} 30... Qe4+ {[%clk 0:00:49.5]} 31. Ka1 {[%clk 0:02:03.3]} 31...
exd5 {[%clk 0:00:46.5]} 32. cxd5 {[%clk 0:02:03]} 32... cxd5 {[%clk 0:00:45.7]}
33. Rxd5+ {[%clk 0:02:01.4]} 33... Qxd5 {[%clk 0:00:45.6]} 34. Rxd5+ {[%clk
0:02:00]} 34... Ke7 {[%clk 0:00:43.7]} 35. a3 {[%clk 0:01:32.3]} 35... f2 {[%clk
0:00:34.9]} 36. Qe2+ {[%clk 0:01:30]} 36... Kf7 {[%clk 0:00:30.6]} 37. Qxf2+
{[%clk 0:01:30.9]} 37... Kg8 {[%clk 0:00:31]} 38. Rd7 {[%clk 0:01:30]} 38... Rf8
{[%clk 0:00:28.4]} 39. Qg2 {[%clk 0:01:27.5]} 1-0

[Event "*** SCC Grand Prix: Titled Tuesday Blitz"]
[Site "Chess.com"]
[Date "2020.06.23"]
[Round "7"]
[White "Alexander_Donchenko"]
[Black "OhanyanEminChess"]
[Result "1-0"]
[WhiteElo "2679"]
[BlackElo "2531"]
[TimeControl "180+1"]
[EndTime "11:16:30 PDT"]
[Termination "Alexander_Donchenko won by resignation"]

1. e4 {[%clk 0:03:00.9]} 1... e5 {[%clk 0:02:50.3]} 2. Nf3 {[%clk 0:03:00.3]}
2... Nc6 {[%clk 0:02:49.3]} 3. Bc4 {[%clk 0:03:00.7]} 3... Nf6 {[%clk
0:02:48.8]} 4. d3 {[%clk 0:03:00.9]} 4... d5 {[%clk 0:02:48.5]} 5. exd5 {[%clk
0:03:00.4]} 5... Nxd5 {[%clk 0:02:48.2]} 6. O-O {[%clk 0:03:00.4]} 6... Bc5
{[%clk 0:02:47.7]} 7. Re1 {[%clk 0:02:57.2]} 7... Be6 {[%clk 0:02:47.7]} 8. Ng5
{[%clk 0:02:52.8]} 8... O-O {[%clk 0:02:46.4]} 9. Nd2 {[%clk 0:02:44.9]} 9...
Qxg5 {[%clk 0:02:43.9]} 10. Ne4 {[%clk 0:02:44.7]} 10... Qe7 {[%clk 0:02:44]}
11. Bg5 {[%clk 0:02:41.3]} 11... f6 {[%clk 0:02:41.3]} 12. Bd2 {[%clk 0:02:41]}
12... Bb6 {[%clk 0:02:36.2]} 13. Qh5 {[%clk 0:02:38.9]} 13... Qf7 {[%clk
0:02:29]} 14. Qh4 {[%clk 0:02:35.3]} 14... Nd4 {[%clk 0:02:27]} 15. Rac1 {[%clk
0:02:30]} 15... Nf5 {[%clk 0:02:21.8]} 16. Qg4 {[%clk 0:02:24.8]} 16... Nfe3
{[%clk 0:02:02.1]} 17. Qg3 {[%clk 0:02:16.2]} 17... Nxc4 {[%clk 0:01:58.3]} 18.
dxc4 {[%clk 0:02:17.1]} 18... Ne7 {[%clk 0:01:58.4]} 19. c5 {[%clk 0:02:15.4]}
19... Nf5 {[%clk 0:01:36.2]} 20. Qa3 {[%clk 0:02:12.3]} 20... Nd4 {[%clk
0:01:30.3]} 21. c3 {[%clk 0:02:04.4]} 21... Nc6 {[%clk 0:01:25.6]} 22. b4 {[%clk
0:02:00]} 22... Rfd8 {[%clk 0:00:56]} 23. Qb2 {[%clk 0:01:56.1]} 23... Bxa2
{[%clk 0:00:40.8]} 24. cxb6 {[%clk 0:01:51]} 24... axb6 {[%clk 0:00:41.7]} 25.
Ng3 {[%clk 0:01:43.5]} 25... Be6 {[%clk 0:00:38.1]} 26. Ra1 {[%clk 0:01:42.8]}
26... Rxa1 {[%clk 0:00:31.2]} 27. Rxa1 {[%clk 0:01:43.7]} 27... Qd7 {[%clk
0:00:31.1]} 28. Be3 {[%clk 0:01:40]} 28... Qd1+ {[%clk 0:00:28.2]} 29. Rxd1
{[%clk 0:01:39.3]} 29... Rxd1+ {[%clk 0:00:29.1]} 30. Nf1 {[%clk 0:01:39.3]}
30... Bc4 {[%clk 0:00:30]} 31. h4 {[%clk 0:01:38.1]} 31... b5 {[%clk 0:00:17.1]}
32. Kh2 {[%clk 0:01:35.1]} 32... Rxf1 {[%clk 0:00:17.5]} 33. Qd2 {[%clk
0:01:33.1]} 33... Be6 {[%clk 0:00:09.9]} 34. Qd3 {[%clk 0:01:32.3]} 34... Ra1
{[%clk 0:00:08.8]} 35. Qxb5 {[%clk 0:01:32.2]} 35... Kf7 {[%clk 0:00:03.4]} 36.
Qxb7 {[%clk 0:01:31.4]} 36... Ne7 {[%clk 0:00:04.3]} 37. Qxc7 {[%clk 0:01:30.8]}
37... Rd1 {[%clk 0:00:05]} 38. b5 {[%clk 0:01:27.7]} 38... Rd7 {[%clk
0:00:05.9]} 39. Qc5 {[%clk 0:01:25.4]} 39... Nd5 {[%clk 0:00:06.8]} 40. b6
{[%clk 0:01:24.8]} 40... Rb7 {[%clk 0:00:06.3]} 41. Qc6 {[%clk 0:01:24.1]} 1-0

[Event "*** SCC Grand Prix: Titled Tuesday Blitz"]
[Site "Chess.com"]
[Date "2020.06.23"]
[Round "7"]
[White "deep306"]
[Black "Siniauski"]
[Result "1-0"]
[WhiteElo "2651"]
[BlackElo "2499"]
[TimeControl "180+1"]
[EndTime "11:16:30 PDT"]
[Termination "deep306 won on time"]

1. d4 {[%clk 0:03:00.9]} 1... Nf6 {[%clk 0:03:00.1]} 2. Bf4 {[%clk 0:03:01.1]}
2... b6 {[%clk 0:02:58.3]} 3. e3 {[%clk 0:03:00.8]} 3... Bb7 {[%clk 0:02:58.6]}
4. Nf3 {[%clk 0:03:00.6]} 4... g6 {[%clk 0:02:54.2]} 5. Nbd2 {[%clk 0:02:58.3]}
5... Bg7 {[%clk 0:02:53.7]} 6. Bd3 {[%clk 0:02:58.5]} 6... O-O {[%clk
0:02:52.3]} 7. Qe2 {[%clk 0:02:58.1]} 7... d5 {[%clk 0:02:46.3]} 8. c3 {[%clk
0:02:56]} 8... Nbd7 {[%clk 0:02:45.5]} 9. h4 {[%clk 0:02:52.5]} 9... c5 {[%clk
0:02:41]} 10. Ne5 {[%clk 0:02:50.6]} 10... Nxe5 {[%clk 0:02:05.4]} 11. Bxe5
{[%clk 0:02:50.2]} 11... Rc8 {[%clk 0:01:49.2]} 12. h5 {[%clk 0:02:49.2]} 12...
e6 {[%clk 0:01:31.9]} 13. Qf3 {[%clk 0:02:41.6]} 13... Qe7 {[%clk 0:01:24.2]}
14. Qh3 {[%clk 0:02:25.8]} 14... Bc6 {[%clk 0:01:11.7]} 15. g4 {[%clk
0:02:23.2]} 15... g5 {[%clk 0:00:42.8]} 16. h6 {[%clk 0:02:20.5]} 16... Bh8
{[%clk 0:00:41.6]} 17. f4 {[%clk 0:01:58.2]} 17... Ne4 {[%clk 0:00:39.6]} 18.
fxg5 {[%clk 0:01:28.8]} 18... Qxg5 {[%clk 0:00:35.2]} 19. Bf4 {[%clk 0:01:25.6]}
19... Qg6 {[%clk 0:00:20.5]} 20. Nf3 {[%clk 0:01:16.5]} 20... Ng5 {[%clk
0:00:10.2]} 21. Bxg6 {[%clk 0:01:07]} 21... Nxh3 {[%clk 0:00:10.5]} 22. Bxh7+
{[%clk 0:01:07.3]} 22... Kxh7 {[%clk 0:00:10.9]} 23. Rxh3 {[%clk 0:01:08]} 23...
f6 {[%clk 0:00:11]} 24. Kd2 {[%clk 0:01:06.9]} 24... Rg8 {[%clk 0:00:09.8]} 25.
Rg1 {[%clk 0:01:06.4]} 25... Bd7 {[%clk 0:00:09.5]} 26. Rhg3 {[%clk 0:01:02.4]}
26... Rce8 {[%clk 0:00:08.5]} 27. g5 {[%clk 0:01:01.9]} 27... fxg5 {[%clk
0:00:02.6]} 28. Nxg5+ {[%clk 0:01:01]} 1-0

[Event "*** SCC Grand Prix: Titled Tuesday Blitz"]
[Site "Chess.com"]
[Date "2020.06.23"]
[Round "7"]
[White "mishanick"]
[Black "Bulldog167"]
[Result "1-0"]
[WhiteElo "2995"]
[BlackElo "2781"]
[TimeControl "180+1"]
[EndTime "11:16:36 PDT"]
[Termination "mishanick won by resignation"]

1. d4 {[%clk 0:03:00.9]} 1... Nf6 {[%clk 0:03:00.9]} 2. c4 {[%clk 0:03:01.5]}
2... e6 {[%clk 0:03:01.4]} 3. Nf3 {[%clk 0:03:01.6]} 3... d5 {[%clk 0:03:01.9]}
4. Nc3 {[%clk 0:03:01.9]} 4... a6 {[%clk 0:03:02.7]} 5. cxd5 {[%clk 0:02:58.4]}
5... exd5 {[%clk 0:03:03.6]} 6. Qb3 {[%clk 0:02:59.1]} 6... c6 {[%clk 0:03:00]}
7. e4 {[%clk 0:02:59.1]} 7... Be7 {[%clk 0:02:26.8]} 8. e5 {[%clk 0:02:58.6]}
8... Ne4 {[%clk 0:02:27.1]} 9. Bd3 {[%clk 0:02:55.7]} 9... Nxc3 {[%clk 0:02:26]}
10. bxc3 {[%clk 0:02:56.1]} 10... b5 {[%clk 0:02:24.9]} 11. a4 {[%clk
0:02:52.8]} 11... Bb7 {[%clk 0:02:09.1]} 12. O-O {[%clk 0:02:50.7]} 12... Nd7
{[%clk 0:02:06.4]} 13. Qc2 {[%clk 0:02:26.6]} 13... Nf8 {[%clk 0:02:03.5]} 14.
Nd2 {[%clk 0:02:10.5]} 14... Ne6 {[%clk 0:01:59.8]} 15. f4 {[%clk 0:02:10.3]}
15... g6 {[%clk 0:01:59.6]} 16. f5 {[%clk 0:02:07.6]} 16... gxf5 {[%clk
0:02:00.5]} 17. Bxf5 {[%clk 0:02:06.4]} 17... Qd7 {[%clk 0:01:59.6]} 18. Nb3
{[%clk 0:02:04.3]} 18... O-O-O {[%clk 0:01:55]} 19. Ba3 {[%clk 0:02:03.4]} 19...
Rhg8 {[%clk 0:01:48.3]} 20. Bxe7 {[%clk 0:02:00.8]} 20... Qxe7 {[%clk
0:01:48.4]} 21. Nc5 {[%clk 0:02:01.3]} 21... Rg5 {[%clk 0:01:22.8]} 22. axb5
{[%clk 0:01:50.1]} 22... cxb5 {[%clk 0:01:22.5]} 23. Bxe6+ {[%clk 0:01:45.1]}
23... fxe6 {[%clk 0:01:22.5]} 24. Rf6 {[%clk 0:01:38.8]} 24... Rdg8 {[%clk
0:01:17.3]} 25. g3 {[%clk 0:01:34]} 25... Rxe5 {[%clk 0:01:06]} 26. Raf1 {[%clk
0:01:30.8]} 26... Rf5 {[%clk 0:00:54.1]} 27. R1xf5 {[%clk 0:01:22.3]} 27... exf5
{[%clk 0:00:53.9]} 28. Qxf5+ {[%clk 0:01:22.7]} 28... Kb8 {[%clk 0:00:53.3]} 29.
Re6 {[%clk 0:01:00.4]} 29... Qg5 {[%clk 0:00:44]} 30. Re8+ {[%clk 0:00:46.8]}
30... Ka7 {[%clk 0:00:43.9]} 31. Qxg5 {[%clk 0:00:46.8]} 31... Rxg5 {[%clk
0:00:44.5]} 32. Re7 {[%clk 0:00:47.4]} 32... Kb6 {[%clk 0:00:43]} 33. Rxb7+
{[%clk 0:00:47.7]} 33... Ka5 {[%clk 0:00:43.9]} 34. Rxh7 {[%clk 0:00:46.4]}
34... b4 {[%clk 0:00:43.6]} 35. cxb4+ {[%clk 0:00:46.5]} 35... Kb5 {[%clk
0:00:44.3]} 36. Kg2 {[%clk 0:00:43.4]} 36... Kc4 {[%clk 0:00:44.7]} 37. Ra7
{[%clk 0:00:39.4]} 37... Kxd4 {[%clk 0:00:43.8]} 38. Ne6+ {[%clk 0:00:39.5]}
38... Kc3 {[%clk 0:00:44]} 39. Nxg5 {[%clk 0:00:40.4]} 1-0

[Event "*** SCC Grand Prix: Titled Tuesday Blitz"]
[Site "Chess.com"]
[Date "2020.06.23"]
[Round "7"]
[White "volcanoexplorer"]
[Black "OK97"]
[Result "0-1"]
[WhiteElo "2605"]
[BlackElo "2831"]
[TimeControl "180+1"]
[EndTime "11:16:37 PDT"]
[Termination "OK97 won on time"]

1. e4 {[%clk 0:03:00.9]} 1... g6 {[%clk 0:02:59.8]} 2. d4 {[%clk 0:03:00.8]}
2... Bg7 {[%clk 0:03:00.4]} 3. Nc3 {[%clk 0:02:56.4]} 3... d6 {[%clk 0:03:00.8]}
4. Be3 {[%clk 0:02:55.5]} 4... a6 {[%clk 0:03:00.6]} 5. a4 {[%clk 0:02:54.9]}
5... Nf6 {[%clk 0:02:59]} 6. h3 {[%clk 0:02:55]} 6... O-O {[%clk 0:02:57.3]} 7.
g4 {[%clk 0:02:55.2]} 7... e5 {[%clk 0:02:53.3]} 8. Nge2 {[%clk 0:02:51.6]} 8...
Nc6 {[%clk 0:02:40.3]} 9. Bg2 {[%clk 0:02:50.5]} 9... exd4 {[%clk 0:02:17.4]}
10. Nxd4 {[%clk 0:02:51.4]} 10... Bd7 {[%clk 0:02:09.8]} 11. O-O {[%clk
0:02:50.5]} 11... Re8 {[%clk 0:02:08.3]} 12. f4 {[%clk 0:02:42.6]} 12... Nxd4
{[%clk 0:02:00.9]} 13. Bxd4 {[%clk 0:02:43.5]} 13... c5 {[%clk 0:02:01.2]} 14.
Bf2 {[%clk 0:02:32.4]} 14... Bc6 {[%clk 0:02:01.3]} 15. Qd3 {[%clk 0:02:24]}
15... b5 {[%clk 0:01:51.2]} 16. Nd5 {[%clk 0:01:19.2]} 16... bxa4 {[%clk
0:01:26.9]} 17. c4 {[%clk 0:00:44.5]} 17... Rb8 {[%clk 0:01:23.6]} 18. e5 {[%clk
0:00:35.4]} 18... Nxd5 {[%clk 0:01:16.1]} 19. Bxd5 {[%clk 0:00:34.4]} 19... Bxd5
{[%clk 0:01:10.4]} 20. cxd5 {[%clk 0:00:27]} 20... Rb3 {[%clk 0:01:06.7]} 21.
Qc4 {[%clk 0:00:18.2]} 21... dxe5 {[%clk 0:01:02.7]} 22. Rxa4 {[%clk 0:00:18]}
22... Rxh3 {[%clk 0:01:02.2]} 23. Kg2 {[%clk 0:00:10.5]} 23... Rh6 {[%clk
0:00:58.4]} 24. Rxa6 {[%clk 0:00:08.7]} 24... exf4 {[%clk 0:00:55.1]} 25. Qxc5
{[%clk 0:00:04.2]} 25... Qg5 {[%clk 0:00:49.3]} 26. Kf3 {[%clk 0:00:02.1]} 26...
Rh3+ {[%clk 0:00:48.1]} 27. Kg2 {[%clk 0:00:02.6]} 27... Qxg4+ {[%clk
0:00:48.2]} 0-1

[Event "*** SCC Grand Prix: Titled Tuesday Blitz"]
[Site "Chess.com"]
[Date "2020.06.23"]
[Round "7"]
[White "Korchmar_Vasiliy"]
[Black "Raja3401"]
[Result "0-1"]
[WhiteElo "2604"]
[BlackElo "2792"]
[TimeControl "180+1"]
[EndTime "11:16:38 PDT"]
[Termination "Raja3401 won on time"]

1. d4 {[%clk 0:03:00.9]} 1... Nf6 {[%clk 0:02:59.7]} 2. c4 {[%clk 0:03:01.1]}
2... e6 {[%clk 0:02:59.8]} 3. g3 {[%clk 0:03:01.3]} 3... d5 {[%clk 0:02:55.9]}
4. Bg2 {[%clk 0:03:01.6]} 4... Be7 {[%clk 0:02:55.8]} 5. Nf3 {[%clk 0:03:02.1]}
5... O-O {[%clk 0:02:55.5]} 6. O-O {[%clk 0:03:02.7]} 6... dxc4 {[%clk 0:02:56]}
7. Ne5 {[%clk 0:03:03.3]} 7... Nc6 {[%clk 0:02:55.8]} 8. Bxc6 {[%clk 0:03:03.7]}
8... bxc6 {[%clk 0:02:56.1]} 9. Nxc6 {[%clk 0:03:04.6]} 9... Qe8 {[%clk
0:02:56.9]} 10. Nxe7+ {[%clk 0:03:05.5]} 10... Qxe7 {[%clk 0:02:57.8]} 11. Qc2
{[%clk 0:03:05.8]} 11... e5 {[%clk 0:02:57.6]} 12. dxe5 {[%clk 0:03:06.4]} 12...
Qxe5 {[%clk 0:02:58.5]} 13. Bf4 {[%clk 0:03:06.6]} 13... Qh5 {[%clk 0:02:57.4]}
14. Nc3 {[%clk 0:03:05.7]} 14... Re8 {[%clk 0:02:51.2]} 15. Rad1 {[%clk
0:02:19.2]} 15... h6 {[%clk 0:02:43.5]} 16. f3 {[%clk 0:02:14]} 16... Bb7 {[%clk
0:02:40.3]} 17. e4 {[%clk 0:02:09.7]} 17... Rad8 {[%clk 0:02:35.1]} 18. Qf2
{[%clk 0:02:02.5]} 18... a6 {[%clk 0:02:19.8]} 19. Bxc7 {[%clk 0:01:56.2]} 19...
Rd3 {[%clk 0:02:18.6]} 20. Rxd3 {[%clk 0:01:45.3]} 20... cxd3 {[%clk 0:02:16.8]}
21. Rd1 {[%clk 0:01:44.7]} 21... Rc8 {[%clk 0:01:58.2]} 22. Bd6 {[%clk
0:01:36.8]} 22... Nxe4 {[%clk 0:01:57.2]} 23. Nxe4 {[%clk 0:01:03.2]} 23... Bxe4
{[%clk 0:01:55.3]} 24. g4 {[%clk 0:00:41.8]} 24... Qd5 {[%clk 0:01:44.1]} 25.
fxe4 {[%clk 0:00:40.5]} 25... Qxd6 {[%clk 0:01:43.6]} 26. Rd2 {[%clk 0:00:32.3]}
26... Qe6 {[%clk 0:01:36.7]} 27. Qf3 {[%clk 0:00:18.5]} 27... Rc1+ {[%clk
0:01:28.8]} 28. Kg2 {[%clk 0:00:18.7]} 28... Rc2 {[%clk 0:01:28.4]} 29. Qxd3
{[%clk 0:00:11.3]} 29... Qxg4+ {[%clk 0:01:26.4]} 30. Kf2 {[%clk 0:00:08.9]}
30... Qf4+ {[%clk 0:01:26]} 31. Ke1 {[%clk 0:00:08.9]} 31... Rxb2 {[%clk
0:01:02.3]} 0-1

[Event "*** SCC Grand Prix: Titled Tuesday Blitz"]
[Site "Chess.com"]
[Date "2020.06.23"]
[Round "7"]
[White "Tooweak2slow03"]
[Black "Diego_FloresQ"]
[Result "1/2-1/2"]
[WhiteElo "2657"]
[BlackElo "2495"]
[TimeControl "180+1"]
[EndTime "11:16:38 PDT"]
[Termination "Game drawn - insufficient material"]

1. e4 {[%clk 0:03:00.9]} 1... c5 {[%clk 0:02:59.6]} 2. Nf3 {[%clk 0:03:01.4]}
2... e6 {[%clk 0:02:56.8]} 3. d4 {[%clk 0:03:01.8]} 3... cxd4 {[%clk 0:02:57.7]}
4. Nxd4 {[%clk 0:03:02.5]} 4... Nf6 {[%clk 0:02:57]} 5. Nc3 {[%clk 0:02:55.9]}
5... d6 {[%clk 0:02:57.4]} 6. g4 {[%clk 0:02:49.3]} 6... h6 {[%clk 0:02:56.3]}
7. h4 {[%clk 0:02:47.9]} 7... Nc6 {[%clk 0:02:55.6]} 8. Rg1 {[%clk 0:02:22.8]}
8... d5 {[%clk 0:02:54.4]} 9. exd5 {[%clk 0:02:21.2]} 9... Nxd5 {[%clk
0:02:55.3]} 10. Nxd5 {[%clk 0:02:19.6]} 10... exd5 {[%clk 0:02:56.2]} 11. Be3
{[%clk 0:02:15.9]} 11... Qxh4 {[%clk 0:02:55.3]} 12. Qe2 {[%clk 0:02:12.5]}
12... Nxd4 {[%clk 0:02:52.5]} 13. Bxd4+ {[%clk 0:02:11]} 13... Qe7 {[%clk
0:02:53.1]} 14. Qxe7+ {[%clk 0:02:08.7]} 14... Bxe7 {[%clk 0:02:42.1]} 15. Bxg7
{[%clk 0:02:06.6]} 15... Rg8 {[%clk 0:02:42.7]} 16. Bxh6 {[%clk 0:02:06.4]}
16... Rxg4 {[%clk 0:02:43.3]} 17. Rxg4 {[%clk 0:02:01.7]} 17... Bxg4 {[%clk
0:02:44.2]} 18. Be2 {[%clk 0:02:02.6]} 18... Bxe2 {[%clk 0:02:38.9]} 19. Kxe2
{[%clk 0:02:03.5]} 19... Kd7 {[%clk 0:02:39.1]} 20. Kd3 {[%clk 0:02:00.8]} 20...
Rg8 {[%clk 0:02:38.8]} 21. Be3 {[%clk 0:01:58.2]} 21... b6 {[%clk 0:02:35.4]}
22. c3 {[%clk 0:01:56.6]} 22... Bc5 {[%clk 0:02:28.4]} 23. Rh1 {[%clk
0:01:54.3]} 23... Rg6 {[%clk 0:02:15.1]} 24. Rh5 {[%clk 0:01:50.1]} 24... Ke6
{[%clk 0:02:09.4]} 25. Bxc5 {[%clk 0:01:47.3]} 25... bxc5 {[%clk 0:02:10.3]} 26.
Rh8 {[%clk 0:01:39]} 26... Rg1 {[%clk 0:01:37.2]} 27. Ra8 {[%clk 0:01:34.9]}
27... Rb1 {[%clk 0:01:36.9]} 28. b3 {[%clk 0:01:22.7]} 28... Rb2 {[%clk
0:01:34.6]} 29. Rxa7 {[%clk 0:01:21.4]} 29... Rxf2 {[%clk 0:01:33]} 30. a4
{[%clk 0:01:20.2]} 30... Rb2 {[%clk 0:01:28.5]} 31. Rb7 {[%clk 0:01:16.5]} 31...
Rxb3 {[%clk 0:00:41.6]} 32. Rxb3 {[%clk 0:01:04.2]} 32... c4+ {[%clk 0:00:41.5]}
33. Kc2 {[%clk 0:01:04.2]} 33... cxb3+ {[%clk 0:00:42.4]} 34. Kxb3 {[%clk
0:01:05.1]} 34... Kd6 {[%clk 0:00:39.6]} 35. Kc2 {[%clk 0:01:02.6]} 35... Kc5
{[%clk 0:00:38]} 36. Kd3 {[%clk 0:01:01.9]} 36... f5 {[%clk 0:00:38.5]} 37. Ke3
{[%clk 0:01:00.2]} 37... Kb6 {[%clk 0:00:29.9]} 38. Kf4 {[%clk 0:00:58.1]} 38...
Ka5 {[%clk 0:00:30.4]} 39. Kxf5 {[%clk 0:00:57.2]} 39... Kxa4 {[%clk 0:00:31]}
40. Ke5 {[%clk 0:00:55.7]} 40... Kb3 {[%clk 0:00:31.7]} 41. Kd4 {[%clk
0:00:53.7]} 41... Kc2 {[%clk 0:00:31.6]} 42. c4 {[%clk 0:00:51.7]} 42... dxc4
{[%clk 0:00:31.3]} 43. Kxc4 {[%clk 0:00:51.7]} 1/2-1/2

[Event "*** SCC Grand Prix: Titled Tuesday Blitz"]
[Site "Chess.com"]
[Date "2020.06.23"]
[Round "7"]
[White "DishonorOnYourCow"]
[Black "Raffaello123"]
[Result "1-0"]
[WhiteElo "2343"]
[BlackElo "2419"]
[TimeControl "180+1"]
[EndTime "11:16:38 PDT"]
[Termination "DishonorOnYourCow won by resignation"]

1. d4 {[%clk 0:03:00.9]} 1... Nf6 {[%clk 0:02:59.9]} 2. c4 {[%clk 0:02:59.7]}
2... c5 {[%clk 0:03:00.5]} 3. d5 {[%clk 0:02:58.8]} 3... e6 {[%clk 0:03:00.8]}
4. Nc3 {[%clk 0:02:57.6]} 4... exd5 {[%clk 0:03:01.1]} 5. cxd5 {[%clk
0:02:58.5]} 5... d6 {[%clk 0:03:01.5]} 6. Nf3 {[%clk 0:02:58.3]} 6... g6 {[%clk
0:03:01.1]} 7. Nd2 {[%clk 0:02:58.5]} 7... Bg7 {[%clk 0:03:01.3]} 8. e4 {[%clk
0:02:58.8]} 8... O-O {[%clk 0:03:01.4]} 9. Be2 {[%clk 0:02:57.1]} 9... Na6
{[%clk 0:03:01.6]} 10. O-O {[%clk 0:02:56.6]} 10... Nc7 {[%clk 0:03:01.3]} 11.
Nf3 {[%clk 0:02:55.8]} 11... Bg4 {[%clk 0:03:00.3]} 12. a4 {[%clk 0:02:52.5]}
12... Bxf3 {[%clk 0:03:00.3]} 13. Bxf3 {[%clk 0:02:53.1]} 13... a6 {[%clk
0:03:00.7]} 14. Be2 {[%clk 0:02:52]} 14... Rb8 {[%clk 0:03:00.9]} 15. a5 {[%clk
0:02:50.7]} 15... b5 {[%clk 0:03:00.7]} 16. axb6 {[%clk 0:02:49.8]} 16... Rxb6
{[%clk 0:03:01]} 17. Qc2 {[%clk 0:02:44.5]} 17... Re8 {[%clk 0:03:00.3]} 18. h3
{[%clk 0:02:36.6]} 18... Qb8 {[%clk 0:02:55.6]} 19. Na4 {[%clk 0:02:18.4]} 19...
Rb4 {[%clk 0:02:53.6]} 20. f3 {[%clk 0:02:14.2]} 20... Nb5 {[%clk 0:02:52]} 21.
Bf4 {[%clk 0:02:09.5]} 21... Nh5 {[%clk 0:02:51.8]} 22. Bh2 {[%clk 0:02:08]}
22... Nd4 {[%clk 0:02:49.4]} 23. Qd1 {[%clk 0:02:01.3]} 23... g5 {[%clk
0:02:24.4]} 24. Bxa6 {[%clk 0:01:30.6]} 24... f5 {[%clk 0:02:17.1]} 25. Nxc5
{[%clk 0:01:10.3]} 25... f4 {[%clk 0:02:11.6]} 26. Nd3 {[%clk 0:00:52.9]} 26...
Qb6 {[%clk 0:02:09.4]} 27. Kh1 {[%clk 0:00:47.8]} 27... Ra8 {[%clk 0:02:01.2]}
28. Nxb4 {[%clk 0:00:46.8]} 28... Qxb4 {[%clk 0:02:00.1]} 29. Bd3 {[%clk
0:00:41.4]} 29... Rxa1 {[%clk 0:01:56.2]} 30. Qxa1 {[%clk 0:00:42.3]} 30... Be5
{[%clk 0:01:56.2]} 31. Qa8+ {[%clk 0:00:38.8]} 31... Kg7 {[%clk 0:01:56.3]} 32.
Rc1 {[%clk 0:00:36.6]} 32... Kh6 {[%clk 0:01:51.7]} 33. Qf8+ {[%clk 0:00:30.3]}
33... Bg7 {[%clk 0:01:48.5]} 34. Qc8 {[%clk 0:00:28.7]} 34... Qd2 {[%clk
0:01:47.3]} 35. Ba6 {[%clk 0:00:22.9]} 35... Ne2 {[%clk 0:01:35.6]} 36. Bxe2
{[%clk 0:00:19.9]} 36... Qxe2 {[%clk 0:01:36.5]} 37. Qc2 {[%clk 0:00:18.7]}
37... Qe3 {[%clk 0:01:35]} 38. Bg1 {[%clk 0:00:14.9]} 38... Ng3+ {[%clk
0:01:30.8]} 39. Kh2 {[%clk 0:00:15.1]} 39... Qe2 {[%clk 0:01:25.5]} 40. Qxe2
{[%clk 0:00:14.4]} 40... Nxe2 {[%clk 0:01:26.4]} 41. Rc6 {[%clk 0:00:13.8]}
41... Be5 {[%clk 0:01:24.8]} 42. Bc5 {[%clk 0:00:12.7]} 42... Bxb2 {[%clk
0:01:20]} 43. Bxd6 {[%clk 0:00:12.6]} 43... Kh5 {[%clk 0:01:20.5]} 44. Bf8
{[%clk 0:00:11.8]} 44... g4 {[%clk 0:01:20.2]} 45. hxg4+ {[%clk 0:00:11.2]}
45... Kg5 {[%clk 0:01:20.6]} 46. Be7+ {[%clk 0:00:11.1]} 1-0